Cogmind - Beta 15 @@@ ROGUE MODE // 2025.07.14 @ 17:24:45 Player: Skysub Result: Destroyed by H-66 Slayer with Heavy Assault Rifle Performance ------------- Evolutions (4) 2000 Regions Visited (5) 1000 Robots Destroyed (41) 205 Value Destroyed (1013) 1013 Prototype IDs (20) 400 Alien Tech Used (0) 0 Bonus (335) 335 TOTAL SCORE: 4953 Bonus ------- Follower Combat Kills 129 Registered with UFD 300 Met Optimus in HQ 500 Friendly Fire -594 Cogmind --------- Core Integrity 0/850 Matter 187/300 Energy 21/100 System Corruption 5% Temperature Cool (0) Movement Core (50) Location -6/Factory Parts ------- > --- POWER (2) -------- (None) > --- PROPULSION (4) --- (None) > --- UTILITY (7) ------ Deep Structural Scanner Makeshift System Shield > --- WEAPON (2) ------- (None) > --- INVENTORY (5) ---- Enhanced Optical Array Improved System Shield Makeshift Axe Large Botcube Peak State ------------ > --- POWER ------------ Fission Core Light Fission Core > --- PROPULSION ------- Makeshift Leg Arachnoskeleton > --- UTILITY ---------- Large Storage Unit Deep Structural Scanner Reaction Control System Improved Propulsion Shielding Makeshift Kinetic Plating Makeshift Hacking Suite Makeshift System Shield > --- WEAPON ----------- Coil Gun Heavy Machine Gun > --- INVENTORY -------- Scrap Suit Improved Sensor Array Improved Signal Interpreter Improved Targeting Computer Improved System Shield Makeshift Shrapnel Gun Grenade Launcher Remote Datajack Plasma Cutter Makeshift Axe Large Botcube [Rating: 74] Favorites ----------- Power Subdweller Power Source Engine Subdweller Power Source Power Core Fission Core Propulsion Light Treads Treads Light Treads Leg Makeshift Leg Wheel Compact Wheel Utility Large Storage Unit Device V3-11A's Pendant Storage Large Storage Unit Processor Improved Targeting Computer Hackware Makeshift System Shield Protection Improved Propulsion Shielding Weapon Grenade Launcher Energy Gun Particle Gun Ballistic Gun Makeshift Shrapnel Gun Launcher Grenade Launcher Special Weapon CPS Tube Slashing Weapon Makeshift Axe Build | -11 -10 -10 -9 -9 -6 ------- Run | Yrd Mat Sub Rec Scr Fac Slots Evolved 8 | . . . . . 8 Power 1 | . . . . . 1 Propulsion 2 | . . . . . 2 Utility 5 | . . . . . 5 Weapon . | . . . . . . Parts Attached 42 | 6 6 8 3 4 15 Power 6 | 2 . 1 . 2 1 Engine 3 | 2 . 1 . . . Core 3 | . . . . 2 1 Reactor . | . . . . . . Propulsion 11 | 2 1 4 2 . 2 Treads 3 | 2 . 1 . . . Leg 3 | . . . 1 . 2 Wheel 5 | . 1 3 1 . . Hover . | . . . . . . Flight . | . . . . . . Utility 15 | . 3 1 . 1 10 Device 5 | . 1 1 . 1 2 Storage 2 | . 2 . . . . Processor 1 | . . . . . 1 Hackware 2 | . . . . . 2 Protection 5 | . . . . . 5 Artifact . | . . . . . . Weapon 10 | 2 2 2 1 1 2 Energy Gun 1 | . 1 . . . . Energy Cannon . | . . . . . . Ballistic Gun 6 | 2 . 1 1 . 2 Ballistic Cannon . | . . . . . . Launcher 1 | . 1 . . . . Special Weapon 1 | . . . . 1 . Impact Weapon . | . . . . . . Slashing Weapon 1 | . . 1 . . . Piercing Weapon . | . . . . . . Special Melee Weapon . | . . . . . . Unidentified Prototypes 1 | . . 1 . . . Parts Lost 15 | . 2 1 . . 12 Power 2 | . . 1 . . 1 Propulsion 2 | . . . . . 2 Utility 7 | . . . . . 7 Weapon 4 | . 2 . . . 2 Highest Loss Streak 10 | . 2 1 . . 10 To Critical Strikes . | . . . . . . Average Backups 9 | 2 5 12 13 6 10 Power . | . 1 . . . . Propulsion 1 | . . 2 3 1 . Utility 3 | . 2 3 6 2 5 Weapon 2 | . 1 5 3 1 2 Tool/Special . | . . . . . . Unused Backups 20 | . . 4 1 7 8 Power . | . . . . . . Propulsion 1 | . . . . 1 . Utility 10 | . . 2 . 2 6 Weapon 7 | . . 2 1 4 . Tool/Special 2 | . . . . . 2 Average Slot Usage (%) 81 | . 93 89 97 68 63 Engine 5 | . 13 4 11 . . Core 2 | . . . . 5 4 Treads 10 | . 27 22 6 . . Leg 6 | . . . 13 8 10 Wheel 6 | . . 5 7 13 . Device 10 | . 11 14 14 8 6 Storage 12 | . 10 14 14 13 5 Hackware 1 | . . . . . 10 Protection 1 | . . . . . 9 Energy Gun 1 | . 6 1 . . . Ballistic Gun 7 | . 15 . 14 6 5 Launcher 9 | . 6 13 14 7 1 Slashing Weapon 4 | . . 12 . 3 3 Peak Build Rating 74 | 5 8 20 22 28 74 Average Rating 20 | 4 6 15 21 13 64 On Entrance 13 | . 5 8 20 21 28 Naked Turns 83 | . . . . 83 . Heaviest Build 55 | 9 32 32 31 37 55 Greatest Support 73 | 40 40 40 20 20 73 Greatest Overweight (x) 10 | . 10 1 1 6 2 Average Overweight (x) . | . . . 1 1 . Largest Inventory Capacity 15 | 5 15 15 15 15 15 Average Capacity 14 | 5 11 15 15 14 14 Most Carried 15 | 4 8 15 15 15 15 Average Carried 10 | 2 5 14 14 7 13 Final Capacity 15 | 5 15 15 15 15 5 Final Carried 15 | 4 8 15 15 15 5 Class Distribution -------------------- 87% | Mutant 9% | Hacker-Mutant Dominant Class ---------------- Mutant | -10/Materials Mutant | -10/Subcaves Mutant | -9/Recycling Mutant | -9/Scraptown Hacker-Mutant | -6/Factory Resources | -11 -10 -10 -9 -9 -6 ----------- Run | Yrd Mat Sub Rec Scr Fac Matter Collected 1575 | 346 402 269 58 60 440 Remotely . | . . . . . . Salvage Created 1217 | 142 516 154 . . 405 Parts 96 | 15 36 20 . 6 19 Haulers Intercepted 1 | . 1 . . . . Recyclers Shooed 1 | 1 . . . . . Parts Field Recycled . | . . . . . . Retrieved Matter . | . . . . . . Parts Self-Destructed 15 | . . 15 . . . Prevented . | . . . . . . Kills | -11 -10 -10 -9 -9 -6 ------- Run | Yrd Mat Sub Rec Scr Fac Combat Hostiles Destroyed 28 | . 13 8 . . 7 Melee 4 | . . 1 . . 3 Guns 15 | . 11 1 . . 3 AOE 9 | . 2 6 . . 1 Classes Destroyed 12 | 3 5 1 . . 3 Worker 2 | 1 1 . . . . Builder 1 | . 1 . . . . Tunneler 4 | 4 . . . . . Hauler 1 | . 1 . . . . Recycler 2 | 1 . . . . 1 Watcher 2 | . 1 . . . 1 Swarmer 9 | . 3 4 . . 2 Saboteur 1 | . . . . . 1 Grunt 11 | . 10 . . . 1 Sentry 1 | . . . . . 1 Programmer 2 | . . . . . 2 Subdweller 5 | . . 4 . 1 . Best Kill Streak 4 | 4 3 4 . . 2 Combat Bots Only 4 | . 3 4 . . 2 Max Kills in Single Turn 3 | 1 1 3 . 1 1 Gunslinging . | . . . . . . Exploded 3 | . 1 3 . . 1 Melee 1 | . . 1 . . 1 Uniques/NPCs Destroyed . | . . . . . . Combat | -11 -10 -10 -9 -9 -6 -------- Run | Yrd Mat Sub Rec Scr Fac Hostile Shots Fired 416 | . 54 19 . . 343 Missed 158 | . 19 8 . . 131 Hits 258 | . 35 11 . . 212 Projectile 258 | . 35 11 . . 212 AOE 2 | . . . . . 2 Critical Strikes 8 | . 3 1 . . 4 Part Disruptions 1 | . . . . . 1 Damage Taken 4094 | . 443 232 1 . 3418 Core 999 | . 85 55 . . 859 Absorbed by Shields . | . . . . . . Redirected to Shielding 158 | . . . . . 158 Ignored by Resistances 5 | . . . . . 5 Regen/Repaired (Parts) 78 | . . . . . 78 Core Remaining (%) 72 | 100 . . . 44 . Volleys Fired 106 | 17 50 7 2 2 28 Largest 2 | 2 2 2 1 1 2 Hottest 95 | 40 40 95 24 . 60 Shots Fired 189 | 34 93 10 2 2 48 Gun 168 | 34 88 4 2 . 40 Cannon . | . . . . . . Launcher 19 | . 5 6 . . 8 Special 2 | . . . . 2 . Kinetic 164 | 34 88 . 2 . 40 Thermal 4 | . . 4 . . . Explosive 19 | . 5 6 . . 8 Electromagnetic . | . . . . . . Robot Hit Streak 16 | 7 10 16 1 2 10 Robot Miss Streak 6 | 2 6 . 3 . 3 Penetration Max . | . . . . . . Secondary Targets 1 | . 1 . . . . Max Gunslinging Chain 1 | . 1 . . . . Shots Hit Robots 147 | 24 59 9 1 9 45 Core Hits 71 | 7 30 7 1 1 25 Critical Kills . | . . . . . . Critical Parts Destroyed 2 | . 2 . . . . Critical Strikes 5 | . 2 . . . 3 Destroy 2 | . 2 . . . . Sever 3 | . . . . . 3 Melee Attacks 81 | . . 50 . 7 24 Impact . | . . . . . . Slashing 81 | . . 50 . 7 24 Piercing . | . . . . . . Sneak Attacks 11 | . . . . 7 4 Combat Hostiles . | . . . . . . Follow-up Attacks . | . . . . . . Damage Inflicted 3972 | 303 922 493 12 494 1748 Guns 1678 | 303 701 62 8 . 604 Cannons . | . . . . . . Explosions 1174 | . 213 385 . . 576 Melee 1108 | . . 46 . 494 568 Ramming 12 | . 8 . 4 . . Kinetic 1616 | 303 701 . 8 . 604 Thermal 62 | . . 62 . . . Explosive 1174 | . 213 385 . . 576 Electromagnetic . | . . . . . . Impact . | . . . . . . Slashing 1108 | . . 46 . 494 568 Piercing . | . . . . . . Highest Corruption 5 | . . . . . 5 Average Corruption 1 | . . . . . 1 Corruption Purged . | . . . . . . Corruption Blocked . | . . . . . . Effects 5 | . . . . . 5 Message Errors 1 | . . . . . 1 Matter Fused 1 | . . . . . 1 Parts Fused 1 | . . . . . 1 Data Loss (minor) 1 | . . . . . 1 Data Loss (major) 1 | . . . . . 1 Overload Shots . | . . . . . . Overflow Damage 112 | . . 8 . 12 92 Projectiles . | . . . . . . Explosions 17 | . . 8 . . 9 Melee 95 | . . . . 12 83 Knockbacks . | . . . . . . Impact . | . . . . . . Kinetic . | . . . . . . Secondary . | . . . . . . Self-Inflicted Damage 39 | . 4 21 1 . 13 Shots 3 | . 1 1 . . 1 Rammed 5 | . 3 . 2 . . Targets Rammed 5 | . 3 . 2 . . Kicked . | . . . . . . Crushed . | . . . . . . Highest Temperature 259 | . 20 259 . . 97 Average Temperature 32 | . 6 139 . . 28 Received Heat Transfer 1187 | . 291 344 . . 552 Siege Activations . | . . . . . . Martial Activations . | . . . . . . Shielding Activations . | . . . . . . Robots Disrupted . | . . . . . . Combat Hostiles . | . . . . . . Robots Corrupted . | . . . . . . Combat Hostiles . | . . . . . . Parts Fried . | . . . . . . Impact Corruptions . | . . . . . . Robots Melted . | . . . . . . Combat Hostiles . | . . . . . . Parts Melted . | . . . . . . Heat Transferred 148 | . . 148 . . . Parts Sabotaged . | . . . . . . Parts Stolen . | . . . . . . Parts Stripped . | . . . . . . Power Chain Reactions . | . . . . . . Alert | -11 -10 -10 -9 -9 -6 ------- Run | Yrd Mat Sub Rec Scr Fac Maximum Alert Level . | . . . . . . Low Security (%) 100 | 100 100 . 100 . 100 Level 1 . | . . . . . . Level 2 . | . . . . . . Level 3 . | . . . . . . Level 4 . | . . . . . . Level 5 . | . . . . . . High Security . | . . . . . . Max Security . | . . . . . . Peak Influence 157 | 10 157 . 60 . 130 Initial 7 | . . . 7 . . Average 39 | 1 68 . 7 . 48 Influence Increases 1248 | 30 491 148 149 . 430 Destroy 0b10 Robot/C 540 | . 260 100 40 . 140 Destroy 0b10 Robot/NC 60 | 30 20 . . . 10 Destroy Leader 116 | . 74 . . . 42 Allied During Kill 7 | . . 3 4 . . Successful Hack 64 | . 9 . 15 . 40 Select Force Hacks 150 | . 60 . 90 . . Disable Machine 45 | . 30 . . . 15 Destroy Structure 41 | . 8 . . . 33 Lose Combat Pursuer 225 | . 30 45 . . 150 Influence Decreases 1248 | 30 491 133 164 . 430 Entered New Map 8 | . . . 8 . . Time Decay 1122 | 30 471 104 156 . 361 Lost Part 99 | . 20 10 . . 69 Lost Ally 19 | . . 19 . . . Squads Dispatched 13 | . 5 . . . 8 Investigation 7 | . 3 . . . 4 Extermination 3 | . . . . . 3 Reinforcement 2 | . 2 . . . . Assault . | . . . . . . Garrison 1 | . . . . . 1 Intercept . | . . . . . . Searches Triggered . | . . . . . . Construction Impeded . | . . . . . . Haulers Reinforced . | . . . . . . Active Scanning Responses . | . . . . . . Cargo Convoy Interrupts 1 | . . . . . 1 Stealth | -11 -10 -10 -9 -9 -6 --------- Run | Yrd Mat Sub Rec Scr Fac Distress Signals 4 | . 2 . . . 2 Communications Jammed . | . . . . . . Distress Signals . | . . . . . . Times Spotted 82 | . 25 14 . . 43 Peak Tracking Total 17 | . 4 6 . . 17 Tactical Retreats 9 | . 2 2 . . 5 Traps | -11 -10 -10 -9 -9 -6 ------- Run | Yrd Mat Sub Rec Scr Fac Traps Triggered 5 | . 5 . . . . Indirectly . | . . . . . . Trap Hack Attempts . | . . . . . . Triggered . | . . . . . . Disarmed . | . . . . . . Reprogrammed . | . . . . . . Reused . | . . . . . . Traps Extracted . | . . . . . . Installed . | . . . . . . Triggered . | . . . . . . Machines | -11 -10 -10 -9 -9 -6 ---------- Run | Yrd Mat Sub Rec Scr Fac Machines Disabled 4 | . 2 1 . . 1 Max in Single Turn 1 | . 1 1 . . 1 Machines Repaired . | . . . . . . Machines Dismantled . | . . . . . . Machines Sabotaged . | . . . . . . Overloaded Fab Kills . | . . . . . . Hacking | -11 -10 -10 -9 -9 -6 --------- Run | Yrd Mat Sub Rec Scr Fac Machines Accessed 30 | . 6 2 9 4 9 Terminals 13 | . 4 . 6 . 3 Fabricators 1 | . . . . . 1 Repair Stations 1 | . . . . . 1 Recycling Units 9 | . 2 . 3 . 4 Scanalyzers . | . . . . . . Garrison Access . | . . . . . . Total Hacks 103 | . 13 4 30 26 30 Successful 79 | . 8 4 20 26 21 Failed 24 | . 5 . 10 . 9 Catastrophic 2 | . . . . . 2 Database Lockouts . | . . . . . . Manual 44 | . 10 . 23 . 11 Terminals 41 | . 9 . 21 . 11 Fabricators 4 | . . . . . 4 Repair Stations 2 | . . . . . 2 Recycling Units 26 | . 4 . 9 . 13 Scanalyzers . | . . . . . . Garrison Access . | . . . . . . Terminal Hacks 39 | . 1 4 3 26 5 Record 28 | . . 3 . 25 . Robot Schematic 1 | . . . 1 . . Terminal Index 1 | . . . . . 1 Recycling Unit Index 1 | . . . 1 . . Locate Traps 1 | . . . . . 1 Dispatch Records 1 | . . . . . 1 Recall Investigation 1 | . . . . . 1 Registered Components 1 | . . . . . 1 Zone Layout 2 | . 1 . 1 . . Proto ID Catalog 2 | . . 1 . 1 . Fabricator Hacks 1 | . . . . . 1 Network Status 1 | . . . . . 1 Repair Station Hacks 2 | . . . . . 2 Scan Component 1 | . . . . . 1 Repair 1 | . . . . . 1 Recycling Unit Hacks 12 | . 2 . 3 . 7 Report Inventory 8 | . 2 . 3 . 3 Retrieve Matter 2 | . . . . . 2 Retrieve Components 2 | . . . . . 2 Scanalyzer . | . . . . . . Garrison Access Hacks . | . . . . . . Unauthorized Hacks 25 | . 5 . 14 . 6 Terminals 15 | . 3 . 10 . 2 Track 1 | . 1 . . . . Botnet 8 | . 1 . 5 . 2 Skim 6 | . 1 . 5 . . Fabricators 1 | . . . . . 1 Report 1 | . . . . . 1 Repair Stations . | . . . . . . Recycling Units 9 | . 2 . 4 . 3 Reject 1 | . . . 1 . . Tunnel 5 | . 2 . 3 . . Fedlink 3 | . . . . . 3 Scanalyzers . | . . . . . . Garrison Access . | . . . . . . Data Cores Recovered . | . . . . . . Used . | . . . . . . Hacking Detections 18 | . 3 . 7 . 8 Full Trace Events 1 | . . . . . 1 Feedback Events . | . . . . . . Feedback Blocked . | . . . . . . Robot Schematics Acquired 1 | . . . 1 . . Robots Built . | . . . . . . Authchips . | . . . . . . Time . | . . . . . . Total Robot Build Rating . | . . . . . . Part Schematics Acquired . | . . . . . . Parts Built . | . . . . . . Authchips . | . . . . . . Time . | . . . . . . Total Part Build Rating . | . . . . . . Parts Repaired 1 | . . . . . 1 Time 38 | . . . . . 38 Parts Recycled . | . . . . . . Recycled Matter . | . . . . . . Retrieved Matter . | . . . . . . Retrieved Components 4 | . . . . . 4 Parts Scanalyzed . | . . . . . . Part Schematics Acquired . | . . . . . . Parts Damaged . | . . . . . . Bothacking | -11 -10 -10 -9 -9 -6 ------------ Run | Yrd Mat Sub Rec Scr Fac Used RIF Installer . | . . . . . . Robots Hacked . | . . . . . . Non-combat . | . . . . . . Combat . | . . . . . . Robot Hacks Applied . | . . . . . . Relay Couplers Released . | . . . . . . Fabnet Peak Effective % . | . . . . . . Robots Rewired . | . . . . . . Allies Hacked . | . . . . . . Hacks Repelled . | . . . . . . Allies | -11 -10 -10 -9 -9 -6 -------- Run | Yrd Mat Sub Rec Scr Fac Total Allies 5 | . . 5 . . . Largest Group 4 | . . 4 2 2 . Highest-Rated Group 76 | . . 76 38 38 . Highest-Rated Ally 19 | . . 19 19 19 . Total Orders . | . . . . . . Ally Attacks 12 | . . 9 3 . . Total Damage 232 | . . 154 78 . . Kills 4 | . . 2 2 . . Allies Corrupted . | . . . . . . Allies Melted . | . . . . . . Intel | -11 -10 -10 -9 -9 -6 ------- Run | Yrd Mat Sub Rec Scr Fac Active Infowar (turns) 3573 | . 1073 511 . 1065 924 Sensors 476 | . . . . . 476 Structural 3097 | . 1073 511 . 1065 448 Robot Analysis Total . | . . . . . . Derelict Logs Recovered 4 | . . . . 4 . Drone Launches . | . . . . . . Drone Recoveries . | . . . . . . Exploration | -11 -10 -10 -9 -9 -6 ------------- Run | Yrd Mat Sub Rec Scr Fac Turns Passed 7865 | 171 1247 1890 1223 2328 1006 Spaces Moved 5057 | 70 558 1202 638 1844 745 Core 176 | 3 2 . . 162 9 Treads 1307 | 67 554 679 7 . . Legs 989 | . . . 261 2 726 Wheels 2585 | . 2 523 370 1680 10 Hover . | . . . . . . Flight . | . . . . . . Fastest Speed 50 | 50 110 120 115 50 50 Average Speed 129 | 155 162 143 155 115 90 Slowest Speed 550 | 160 550 260 260 350 130 Overloaded Moves . | . . . . . . Propulsion Burnouts . | . . . . . . Robots Hopped . | . . . . . . Potential Cave-ins 5 | . . 5 . . . Cave-ins Triggered . | . . . . . . Exploration Rate (%) 64 | 3 99 77 99 85 22 Regions Visited 5 Branch Regions 3 Pre-discovered Areas 16 | . 2 . 5 8 1 Known Exits Taken 3 | . . 1 1 1 . Unknown Exits Taken 2 | 1 1 . . . . Scrap Searched 10 | . . 5 . 5 . Spaces Dug 26 | . . 20 . . 6 Terrain Destroyed 95 | . 8 55 . . 32 Melee 26 | . . 20 . . 6 Projectile 3 | . . . . . 3 AOE 66 | . 8 35 . . 23 Terrain Rammed . | . . . . . . Walls Destroyed . | . . . . . . Machines Disabled . | . . . . . . Actions | -11 -10 -10 -9 -9 -6 --------- Run | Yrd Mat Sub Rec Scr Fac Total 6120 | 95 796 1310 867 2046 1006 Wait 659 | . 164 10 218 109 158 Move 5052 | 69 557 1201 637 1843 745 Hop . | . . . . . . Pick Up 56 | 3 4 16 1 22 10 Fast Attach 38 | 5 13 3 1 10 6 Attach 18 | . 2 1 1 6 8 Detach 15 | . . . 1 13 1 Swap 27 | 1 3 9 2 1 11 Drop 63 | . . 13 2 33 15 Fire 106 | 17 50 7 2 2 28 Melee 81 | . . 50 . 7 24 Ram 2 | . . . 2 . . Kick . | . . . . . . Crush 3 | . 3 . . . . Escape Stasis . | . . . . . . Rewire . | . . . . . . Trap . | . . . . . . Miscellaneous . | . . . . . . Route ------- -11/Scrapyard -10/Materials (discovered 5 exits: [*Mat x3] / [*Min] / *Sub) -10/Subcaves (discovered 3 exits: *Mat x2 / *Rec) -9/Recycling (discovered 2 exits: [*Fac] / *Scr) -9/Scraptown (discovered 2 exits: *Fac x2) -6/Factory (discovered 4 exits: Fac x2 / *Low x2) History --------- Turn | Location | Event 6 | -11/Scrapyard | Discovered new exit (range 16) 172 | -11/Scrapyard | Entered Materials 306 | -10/Materials | Build established: Mutant 618 | -10/Materials | Discovered new exit (range 16) 695 | -10/Materials | Discovered new exit (range 12) 1003 | -10/Materials | Discovered new exit (range 15) 1172 | -10/Materials | Discovered new exit (range 17) 1346 | -10/Materials | Discovered new exit (range 8) 1419 | -10/Materials | Entered Subcaves 1420 | -10/Subcaves | Approached by a straggling Scientist 1623 | -10/Subcaves | Visited 4L-MR0's lab 1643 | -10/Subcaves | Found Arachnoskeleton 1715 | -10/Subcaves | Shifting Twisted Machinery released Mak. Power Source 1751 | -10/Subcaves | Visited triangular shrine 1761 | -10/Subcaves | Found Prototype Device 1762 | -10/Subcaves | Identified V3-11A's Pendant 1767 | -10/Subcaves | Befriended Subdweller 1797 | -10/Subcaves | Befriended Subdweller 1862 | -10/Subcaves | Befriended Subdweller 1862 | -10/Subcaves | Befriended Subdweller 1896 | -10/Subcaves | Discovered new exit (range 15) 2533 | -10/Subcaves | Shifting Twisted Machinery released Spk. Treads 2559 | -10/Subcaves | A swath of the cavern ceiling suddenly collapsed 2771 | -10/Subcaves | Disturbed a concealed Subdweller 2816 | -10/Subcaves | Core integrity fell below 50% 2818 | -10/Subcaves | Befriended Subdweller 2971 | -10/Subcaves | A swath of the cavern ceiling suddenly collapsed 3128 | -10/Subcaves | Visited Clippyterm 3131 | -10/Subcaves | Identified exit to Materials 3131 | -10/Subcaves | Identified exit to Recycling 3131 | -10/Subcaves | Learned Research security intel 3269 | -10/Subcaves | Shifting Twisted Machinery released Mak. System Restoration Module 3309 | -10/Subcaves | Entered Recycling 3309 | -9/Recycling | Accompanied by 2 allies 3560 | -9/Recycling | Discovered new exit (range 5) 3671 | -9/Recycling | Scanned before Scraplab entrance 3700 | -9/Recycling | Entered Scraplab 3717 | -9/Recycling | Discovered new exit (range 2) 4209 | -9/Recycling | Identified exit to Scraptown 4274 | -9/Recycling | Learned Storage security intel 4369 | -9/Recycling | Learned 8 Materials zone layouts 4427 | -9/Recycling | Learned location of Zion (-7) 4477 | -9/Recycling | Learned 2 Storage zone layouts 4532 | -9/Recycling | Entered Scraptown 4532 | -9/Scraptown | Accompanied by 2 allies 4631 | -9/Scraptown | Scanned Subdweller tech in exchange for log data 4634 | -9/Scraptown | Learned location of 2 exits from Lower Caves 4637 | -9/Scraptown | Learned location of Testing (-3) 4669 | -9/Scraptown | Discovered new exit (range 11) 4804 | -9/Scraptown | Delivered V3-11A's Pendant to T0-NE2 in exchange for information 4991 | -9/Scraptown | Visited Supply Room 5007 | -9/Scraptown | Visited Cave Peace 5025 | -9/Scraptown | Visited CPS Storage 5050 | -9/Scraptown | Visited Spacefarers 5060 | -9/Scraptown | Visited Awakened 5103 | -9/Scraptown | Visited The Evicted 5489 | -9/Scraptown | Visited UFD Registry 5489 | -9/Scraptown | Registered with UFD as "Dualwalker" 5644 | -9/Scraptown | Visited Botcube Research 5650 | -9/Scraptown | Found Lrg. Botcube 5687 | -9/Scraptown | Visited Cartography Club 5718 | -9/Scraptown | Learned location of Cetus (-5) 5718 | -9/Scraptown | Learned 16 Materials zone layouts 5718 | -9/Scraptown | Learned 8 Factory zone layouts 5718 | -9/Scraptown | Learned 24 Factory zone layouts 5718 | -9/Scraptown | Learned 4 Recycling zone layouts 5718 | -9/Scraptown | Learned 12 Lower Caves zone layouts 5718 | -9/Scraptown | Learned 16 Lower Caves zone layouts 5718 | -9/Scraptown | Learned 24 Upper Caves zone layouts 5718 | -9/Scraptown | Learned Factory emergency access door positions 5718 | -9/Scraptown | Learned location of 1 exit from Factory 5718 | -9/Scraptown | Learned location of 1 exit from Upper Caves 5718 | -9/Scraptown | Identified exit to Factory 5731 | -9/Scraptown | Found Deep Structural Scanner 5764 | -9/Scraptown | Visited Abandonware Association 5773 | -9/Scraptown | Learned abandonware demo "OVRCLOCK.EXE" 5777 | -9/Scraptown | Learned abandonware demo "POISON.EXE" 5816 | -9/Scraptown | Visited DA-N13 Charitable Foundation 5827 | -9/Scraptown | Found DCF Scrap (30 items) 5863 | -9/Scraptown | Visited Scrap Suit Storage 5892 | -9/Scraptown | Visited Research Penetration Think Tank 5917 | -9/Scraptown | Visited Science Guys 6091 | -9/Scraptown | Visited LU-1G1's Boring Crew 6107 | -9/Scraptown | Visited Curators Association 6159 | -9/Scraptown | Visited Observation Area 6419 | -9/Scraptown | Found Scrap Suit 6776 | -9/Scraptown | Met Optimus 6776 | -9/Scraptown | Accepted into 0bPrime 6860 | -9/Scraptown | Entered Factory 6860 | -6/Factory | Evolved 8 slots: Power x1, Propulsion x2, Utility x5 6861 | -6/Factory | Identified exit to Lower Caves 6862 | -6/Factory | Identified exit to Factory 6875 | -6/Factory | Attached Arachnoskeleton, gained temporary slots: Propulsion x3 7193 | -6/Factory | Discovered exit to Lower Caves (range 7) 7275 | -6/Factory | Repaired Imp. Propulsion Shielding 7344 | -6/Factory | Build established: Hacker-Mutant 7442 | -6/Factory | Loaded intel: 8 recycling unit locations 7688 | -6/Factory | Learned location of Protoforge (-2) 7793 | -6/Factory | Cargo convoy interrupted 7797 | -6/Factory | Garrison activated, responded to threat 7854 | -6/Factory | Core integrity fell below 50% 7862 | -6/Factory | Core integrity fell below 20% 7866 | -6/Factory | Destroyed by H-66 Slayer with Heavy Assault Rifle Last Messages --------------- 07856_ Dropped Mak. Shrapnel Gun. 07856_ Dropped Coil Gun. 07857_ Dropped Plasma Cutter. 07857_ Penetrated by Slug. 07857_ Dropped Remote Datajack. 07860_ Dropped Lrg. Storage Unit. 07860_ Penetrated by Slug. 07860_ Arachnoskeleton destroyed. 07861_ Fusion Modulator explodes. 07861_ Pressure Siphon disabled. 07861_ P-60 Hacker destroyed. 07861_ G-50 Soldier destroyed. 07861_ Temporary Propulsion slot lost. 07863_ Imp. Targeting Computer destroyed. 07863_ Acquired 4 matter. 07863_ K-01 Serf collects debris. 07863_ Acquired 4 matter. 07864_ Acquired 3 matter. 07865_ Penetrated by Slug. 07866_ Slug penetrates Pressure Siphon. Map ----- +----------------------------------------------------+ | ????????????????????????????? #?? | | ?????????????????????????????""" #?? | | ?????????????????????????????""" #?? | | ?????????????????????????????""" #?? | | ???????????????????????????" """ #?? | | ????????????????????????????? #####+##### | | ?????????????????????????????""" # | | ?????????????????????????????""" # | | "" ### ###?????# """ """ # | | "" ### #???????# """ """ + | | "" #"" ######### #### | | #T # # """ """ #??# | | ### # """ # """ """ ############## | | #####?# # """ # """ """ ## | | ??????# # """ # """ """ ## """"""" | | ??????# # # ## """"""" | | ??????# # """ # """ """ ## """"""" | | ??????# # """ # """ """ # """"""" | | ??????# # """ # """ """ # | | ??????# # + """ """ + """"""" | | ??????# # """ # # """"""" | | ####### # """ # """ """ # """"""" | | # """ # """ """ # """"""" | | # # """ """ # | | # """ # """ # | | # """ # @ ############# | | # """ # %"" %"" #??????????? | | #+########### # k %%%w%"" #??????????? | | ############# %% %%%% #??????????? | | ##### % % %%% #??????????? | | """" ##### ############ | | """" ##### %%% # | | """" ##""" """ %%%% # | | ?????????#"F" """ %%% # """ | | ?????????#" """ !! %%% # """"" | | ?????????#""" ! [=!g # """"" | | ?????????#""" % hh%g! # | | ?????????#### %% x|g "" + """ | | ?????????#### "T" %""*xg Y" # """"" | | ?????????#### ######## xh%"" "" # """"" | | ?????????#### ######## % # | | ?????????#### ######## # | | ????????????# ###########/############# | | ????????????# #???## [! ################## | | ????????????# #???## ########?????????? | | ????????????# #???## ########?????????? | | ????????????# #????# #????????????????? | | ????????????# #????# #????????????????? | | ????????????# #????# #????????????????? | | ????????????# #????# #????????????????? | +----------------------------------------------------+ Best States ------------- Heat Dissipation 37 Energy Generation 31 Energy Capacity 370 Matter Stores 300 Matter Capacity 300 Sight Range 16 Robot Scan Range 15 Terrain Scan Density 10 Armor Coverage 825 Resistance: KI 10 Propulsion Shielding 66 Evasion (%) 65 Targeting Accuracy 6 Recoil Reduction 2 Offensive Hacking 11 Defensive Hacking 11 Item Schematics ----------------- None Robot Schematics ------------------ L-31 Rogue | -9/Recycling | Hacked Fabricated ------------ Nothing Repaired ---------- Imp. Propulsion Shielding | 22% | -6/Factory Alien Tech Used ----------------- None Achievements -------------- None Challenges ------------ None Game ------ Seed MachineBehemothScythe Manual? 0 Play Time 01:00:34 Cumulative 151.6 hours Start 2025.07.09 @ 22:06:19 End 2025.07.14 @ 17:24:45 Sessions 3 Manual Loads 0 Difficulty Rogue Special Mode None Game No. 172 Rogue 172 Adventurer 0 Explorer 0 Win Type - Total 3 Types 1/0/0/1/0/0/0/0/0/1 Lore% 65 Gallery% 61 Achievement% 53 Wizard Run 0 Options --------- Layout 1 ASCII 0 Keyboard 1 Movement Numpad Keybinds 0 Fullscreen 1 Font 32/SmallcapsGlow Map View 77x35 Zoom Use 0% Tactical HUD 1 Map Filters NONE Filters NONE Steam 1 RUN: 28aa8fbc-ccfc-46dc-b370-17cf19f86608